[Event "SVK ECo-C Extraliga 2018-19"]
[Site "Slovakia"]
[Date "2018.11.10"]
[Round "1"]
[White "Maslikova, Veronika"]
[Black "Privara, Igor"]
[Result "1-0"]
[ECO "B24"]
[WhiteElo "2249"]
[BlackElo "2207"]
[Annotator "NA"]
[PlyCount "85"]
[EventDate "2018.11.10"]
[EventType "team-tourn"]
[EventCountry "SVK"]
[SourceTitle "playchess.com"]
[Source "ChessBase"]
[SourceQuality "1"]
[WhiteTeam "Podhajska"]
[BlackTeam "Slovan"]
[TimeControl "40/5400+30:1800+30"]

1. e4 {[%emt 0:00:00]} c5 {[%emt 0:00:00]} 2. Nc3 {[%emt 0:00:00]} Nc6 {[%emt 0:00:00]} 3. Bb5 {[%emt 0:00:13]} Nd4 {[%emt 0:00:08]} 4. Bc4 {[%emt 0:00:25]} e6 {[%emt 0:00:49]} 5. Nge2 {[%emt 0:02:17]} a6 {[%emt 0:01:47] B23: Closed Sicilian: Lines without g3} (5... Ne7 6. Nxd4 cxd4 7. Ne2 Nc6 8. O-O a6 9. d3 d5 10. exd5 exd5 11. Bb3 Bd6 12. Nf4 Bxf4 13. Bxf4 O-O 14. Qf3 Be6 15. Rfe1 {1-0 (58) Cornette,M (2611)-Lenic,L (2662) chess.com INT 2018}) 6. a4 {[%emt 0:04:53]} Nf6 {[%emt 0:12:22]} 7. d3 {[%emt 0:15:18]} d5 {[%emt 0:01:32]} 8. Ba2 {[%emt 0:00:20]} Nxe2 {[%emt 0:10:31]} 9. Kxe2 $146 {[%emt 0:01:19]} ({White should play Predecessor:} 9. Qxe2 $11 d4 10. Nb1 Qa5+ 11. Nd2 Qxa4 12. f4 {1-0 (34) Batchelor,G (1829)-Jones,S (2004) Sunningdale 2013}) 9... d4 {[%emt 0:02:35]} 10. Nb1 {[%emt 0:01:20]} Bd7 {[%emt 0:03:55]} 11. Bg5 {[%emt 0:13:41]} Be7 {[%emt 0:05:31]} 12. Nd2 {[%emt 0:07:58]} O-O {[%emt 0:04:09]} 13. Bb3 {[%emt 0:03:04]} Qc7 {[%emt 0:05:49]} 14. a5 {[%emt 0:06:53]} Bc6 {[%emt 0:03:26]} 15. Bh4 {[%emt 0:14:54]} Rae8 {[%emt 0:07:36]} 16. Bg3 {[%emt 0:00:44]} Bd6 {[%emt 0:00:29]} 17. Nc4 {[%emt 0:02:03]} Bf4 {[%emt 0:03:17]} 18. Kf1 {[%emt 0:08:06]} g6 {[%emt 0:04:05]} 19. Qe2 {[%emt 0:05:52]} Nh5 {[%emt 0:03:28]} 20. Ba4 {[%emt 0:01:18]} Bxa4 {[%emt 0:07:41]} 21. Rxa4 {[%emt 0:00:03]} f5 {[%emt 0:00:39]} 22. e5 {[%emt 0:02:52]} Bxg3 {[%emt 0:06:10]} 23. hxg3 {[%emt 0:00:10]} f4 {[%emt 0:00:16]} 24. Nd6 {[%emt 0:01:25]} Re7 {[%emt 0:02:11]} 25. Rh4 {[%emt 0:02:07]} ({Better is} 25. g4 $11 Ng7 26. Ne4 Qxe5 27. Rc4) 25... fxg3 {[%emt 0:03:54]} 26. f3 {[%emt 0:00:02]} Nf4 {[%emt 0:01:09]} 27. Qe4 {[%emt 0:01:05]} Nd5 {[%emt 0:00:31]} 28. Kg1 {[%emt 0:01:28]} Ne3 {[%emt 0:02:19]} 29. Rh3 $19 {[%emt 0:01:12]} (29. Rh6 {keeps fighting.}) 29... Nf5 {[%emt 0:01:11]} 30. Nc4 {[%emt 0:01:11]} Rd7 {[%emt 0:02:07]} 31. Ra3 {[%emt 0:00:39]} Rd5 {[%emt 0:00:25]} 32. Rb3 {[%emt 0:00:03]} Rf7 {[%emt 0:02:58]} 33. Rb6 {[%emt 0:00:51]} Qd7 {[%emt 0:00:26]} 34. b3 {[%emt 0:00:03]} Qe7 {[%emt 0:00:56]} 35. Qg4 {[%emt 0:01:14]} Qf8 {[%emt 0:02:00]} 36. Rxe6 {[%emt 0:00:29]} Qc8 {[%emt 0:00:38]} 37. Rb6 {[%emt 0:00:32]} Qe8 {[%emt 0:00:29]} 38. Qe4 {[%emt 0:01:10]} Rfd7 {[%emt 0:00:52]} 39. Rxb7 {[%emt 0:01:12]} Rxe5 {[%emt 0:00:32]} 40. Nxe5 {[%emt 0:00:10]} Rxb7 {[%emt 0:00:22]} 41. Qxb7 {[%emt 0:30:30]} Qxe5 {[%emt 0:30:10]} 42. Qxh7+ {[%emt 0:01:13]} Kf8 {[%emt 0:00:10]} 43. Qh8+ {[%emt 0:00:11]} 1-0

[Event "SVK ECo-C Extraliga 2018-19"]
[Site "Slovakia"]
[Date "2018.11.10"]
[Round "1"]
[White "Karas, Marek"]
[Black "Vojtek, Vladimir"]
[Result "1/2-1/2"]
[ECO "A04"]
[WhiteElo "2224"]
[BlackElo "2316"]
[Annotator "NA"]
[PlyCount "146"]
[EventDate "2018.11.10"]
[EventType "team-tourn"]
[EventCountry "SVK"]
[SourceTitle "playchess.com"]
[Source "ChessBase"]
[SourceQuality "1"]
[WhiteTeam "Osuske"]
[BlackTeam "Dubnica"]
[TimeControl "40/5400+30:1800+30"]

1. Nf3 {[%emt 0:00:00]} c5 {[%emt 0:01:03]} 2. g3 {[%emt 0:00:00]} Nc6 {[%emt 0:00:34]} 3. c4 {[%emt 0:01:14]} e6 {[%emt 0:00:28]} 4. Bg2 {[%emt 0:00:20]} Nf6 {[%emt 0:00:32]} 5. O-O {[%emt 0:00:26]} Be7 {[%emt 0:00:20]} 6. d4 {[%emt 0:01:16]} cxd4 {[%emt 0:02:50] LiveBook: 102 Games} 7. Nxd4 {[%emt 0:00:16]} O-O {[%emt 0:01:10]} 8. Nc3 {[%emt 0:00:27]} a6 {[%emt 0:01:52]} 9. b3 {[%emt 0:02:51]} Qa5 {[%emt 0:15:39]} 10. Bb2 {[%emt 0:02:51] A33: Symmetrical English: 2 Nf3 Nf6 3 d4 cxd4 4 Nxd4 e6 5 Nc3 Nc6} Rb8 {[%emt 0:02:09]} (10... Ba3 11. Bxa3 Qxa3 12. Na4 Rb8 13. c5 Qb4 14. Nc2 Qg4 15. Ne3 Qh5 16. Bf3 Qh3 17. Nb6 d5 {1-0 (34) Gonda,L (2510)-Marszalek,M (2289) Budapest 2018}) 11. a3 {[%emt 0:02:45]} Nxd4 {[%emt 0:03:39]} 12. Qxd4 {[%emt 0:00:15]} Qc5 {[%emt 0:03:15]} ({Black should try} 12... b6 $14) 13. Qxc5 {[%emt 0:02:11]} Bxc5 {[%emt 0:00:01]} 14. Na4 {[%emt 0:02:06]} Be7 {[%emt 0:09:10]} 15. c5 {[%emt 0:02:49]} b5 $146 {[%emt 0:16:25]} ({Predecessor:} 15... Ne8 16. Rac1 d6 17. Rfd1 f6 18. cxd6 Bxd6 {1-0 (28) Boudy Bueno,J-Caro,A Camaguey 1974}) 16. Be5 {[%emt 0:05:38]} Rb7 {[%emt 0:03:36]} 17. Bxb7 {[%emt 0:01:13]} Bxb7 {[%emt 0:00:02]} 18. Nb6 {[%emt 0:05:10]} Bxc5 {[%emt 0:01:31]} 19. Bxf6 {[%emt 0:00:23]} Bxb6 {[%emt 0:01:11]} 20. Be7 {[%emt 0:00:15]} Re8 {[%emt 0:04:06]} 21. Bd6 {[%emt 0:00:23]} Bd5 {[%emt 0:03:57]} 22. Rab1 {[%emt 0:03:53]} h5 {[%emt 0:01:19]} 23. Rfd1 {[%emt 0:05:47]} Kh7 {[%emt 0:01:59]} 24. Kf1 {[%emt 0:02:21]} g5 {[%emt 0:03:12]} 25. Be5 {[%emt 0:06:11]} Kg6 {[%emt 0:04:10]} 26. b4 {[%emt 0:05:21]} Rc8 {[%emt 0:06:28]} 27. Bd4 {[%emt 0:02:34]} Bd8 {[%emt 0:01:20]} 28. Bc5 {[%emt 0:06:23]} Bf6 {[%emt 0:04:48]} 29. Bd4 {[%emt 0:02:11]} Be7 {[%emt 0:02:43]} 30. Rbc1 {[%emt 0:01:33]} Bc6 {[%emt 0:00:24]} 31. f3 {[%emt 0:02:16]} f6 {[%emt 0:01:02]} 32. Kf2 {[%emt 0:01:07]} Rh8 {[%emt 0:00:18]} 33. e4 {[%emt 0:01:26]} Bd8 {[%emt 0:01:09]} 34. Ke3 {[%emt 0:01:23]} g4 {[%emt 0:01:42]} 35. Rf1 {[%emt 0:04:20]} Rf8 {[%emt 0:01:06]} 36. Rc2 {[%emt 0:02:30]} f5 {[%emt 0:00:57]} 37. exf5+ {[%emt 0:01:36]} exf5 {[%emt 0:00:26]} 38. fxg4 {[%emt 0:01:55]} hxg4 {[%emt 0:00:34]} 39. Re2 {[%emt 0:02:50]} Bd5 {[%emt 0:00:50]} 40. Rfe1 {[%emt 0:07:59]} Bf3 {[%emt 0:00:46]} 41. Rc2 {[%emt 0:32:58]} Be4 {[%emt 0:31:13]} 42. Rce2 {[%emt 0:02:46]} Bg5+ {[%emt 0:00:00]} 43. Kf2 {[%emt 0:00:00]} Rc8 {[%emt 0:00:00]} 44. Be3 {[%emt 0:00:00]} Bf6 {[%emt 0:00:00]} 45. Rc1 {[%emt 0:00:00]} Rh8 {[%emt 0:00:00]} 46. Kg1 $11 {[%emt 0:00:00]} Be5 {[%emt 0:00:00]} 47. Bf2 {[%emt 0:00:00]} Re8 {[%emt 0:00:00]} 48. Rd2 {[%emt 0:00:00]} Bc6 {[%emt 0:00:00]} 49. Re2 {[%emt 0:00:00]} Re6 {[%emt 0:00:00]} 50. Rce1 {[%emt 0:00:00]} Be4 {[%emt 0:00:00]} 51. Rc1 {[%emt 0:00:00]} d5 {[%emt 0:00:00]} 52. Rd2 {[%emt 0:00:00]} Bf6 {[%emt 0:00:30]} 53. Be3 {[%emt 0:00:00]} Bf3 {[%emt 0:00:33]} 54. Kf2 {[%emt 0:00:00]} Be5 {[%emt 0:03:35]} 55. Bf4 {[%emt 0:00:00]} Bf6 {[%emt 0:00:32]} 56. Be3 {[%emt 0:00:00]} d4 {[%emt 0:00:47]} 57. Bxd4 {[%emt 0:01:24]} Bg5 {[%emt 0:00:23]} 58. Rcc2 {[%emt 0:01:20]} Bxd2 {[%emt 0:00:43]} 59. Rxd2 {[%emt 0:00:06]} Be4 {[%emt 0:01:11]} 60. Bc5 {[%emt 0:01:00]} Kf6 {[%emt 0:00:38]} 61. Rd8 {[%emt 0:01:11]} Bf3 {[%emt 0:00:22]} 62. Be3 {[%emt 0:00:16]} Rc6 {[%emt 0:00:11]} 63. Bc5 {[%emt 0:00:04]} Re6 {[%emt 0:00:35]} 64. Rd6 {[%emt 0:00:20]} Rxd6 {[%emt 0:00:05]} 65. Bxd6 {[%emt 0:00:05]} Ke6 {[%emt 0:00:02]} 66. Bc5 {[%emt 0:00:12]} Be4 {[%emt 0:01:03]} 67. Bb6 {[%emt 0:00:29]} Kd5 {[%emt 0:00:15]} 68. Ke3 {[%emt 0:00:11]} Kc4 {[%emt 0:00:02]} 69. Kd2 {[%emt 0:00:25]} Kb3 {[%emt 0:00:09]} 70. Ba5 {[%emt 0:00:09]} Kxa3 {[%emt 0:00:09]} 71. Kc3 {[%emt 0:00:09]} Ka2 {[%emt 0:00:01]} 72. Bc7 {[%emt 0:00:10]} Ka3 {[%emt 0:00:16]} 73. Ba5 {[%emt 0:00:06]} Ka2 {[%emt 0:00:33]} 1/2-1/2

[Event "SVK ECo-C Extraliga 2018-19"]
[Site "Slovakia"]
[Date "2018.11.10"]
[Round "1"]
[White "Bombek, Peter"]
[Black "Gasa, Patrik"]
[Result "1/2-1/2"]
[ECO "D02"]
[WhiteElo "2217"]
[BlackElo "2177"]
[Annotator "NA"]
[PlyCount "50"]
[EventDate "2018.11.10"]
[EventType "team-tourn"]
[EventCountry "SVK"]
[SourceTitle "playchess.com"]
[Source "ChessBase"]
[SourceQuality "1"]
[WhiteTeam "Dubnica"]
[BlackTeam "Osuske"]
[TimeControl "40/5400+30:1800+30"]

1. d4 {[%emt 0:00:00]} d5 {[%emt 0:00:00]} 2. Nf3 {[%emt 0:00:00]} Nf6 {[%emt 0:00:00]} 3. c4 {[%emt 0:00:27]} e6 {[%emt 0:01:39]} 4. e3 {[%emt 0:00:18]} a6 {[%emt 0:00:07] LiveBook: 565 Games} 5. b3 {[%emt 0:01:52] D30: Queen's Gambit Declined: Systems without Nc3} c5 {[%emt 0:00:18]} (5... dxc4 6. bxc4 c5 7. Bd3 cxd4 8. exd4 Bb4+ 9. Nbd2 O-O 10. Bb2 b5 11. c5 Bxc5 12. Bxh7+ Nxh7 13. dxc5 {½-½ (30) Artemiev,V (2706)-Rakhmanov,A (2634) Sochi 2018}) 6. Be2 {[%emt 0:01:16]} Nc6 {[%emt 0:00:14]} 7. O-O {[%emt 0:00:57]} Be7 {[%emt 0:00:04]} 8. Bb2 {[%emt 0:01:00]} O-O {[%emt 0:00:15]} 9. dxc5 {[%emt 0:02:43]} dxc4 {[%emt 0:02:33]} 10. Bxc4 {[%emt 0:02:48]} Bxc5 {[%emt 0:01:21]} 11. Be2 $146 {[%emt 0:03:38]} ({Predecessor:} 11. Nbd2 Be7 12. Nd4 Nxd4 13. Bxd4 b5 14. Be2 Bb7 15. Bf3 Bxf3 16. Nxf3 Nd5 {½-½ (16) Hernando Pertierra,J (2355)-Martin Duque,J (2376) San Sebastian 2017}) 11... Qe7 {[%emt 0:02:21]} 12. Nbd2 {[%emt 0:02:55]} Rd8 {[%emt 0:01:37]} 13. Rc1 {[%emt 0:01:40]} Ba3 {[%emt 0:00:37]} 14. Qc2 {[%emt 0:01:32]} Bd7 {[%emt 0:05:13]} 15. Nc4 {[%emt 0:06:47]} Bxb2 {[%emt 0:00:52]} 16. Qxb2 {[%emt 0:00:20]} Nd5 {[%emt 0:01:27]} 17. Nfe5 {[%emt 0:03:18]} Nxe5 {[%emt 0:04:04]} 18. Nxe5 {[%emt 0:05:24]} Bb5 {[%emt 0:02:34]} 19. Rfd1 {[%emt 0:07:36]} Bxe2 {[%emt 0:03:20]} 20. Qxe2 {[%emt 0:00:05]} Rac8 $11 {[%emt 0:00:04]} 21. g3 {[%emt 0:04:45]} Nc3 {[%emt 0:04:27]} 22. Qc2 {[%emt 0:02:31]} Rxd1+ {[%emt 0:11:03]} 23. Rxd1 {[%emt 0:01:03]} Qc7 {[%emt 0:00:18]} 24. Rd4 {[%emt 0:01:12]} b5 {[%emt 0:34:51]} 25. Nd3 {[%emt 0:11:59]} g6 {[%emt 0:01:57]} 1/2-1/2

[Event "SVK ECo-C Extraliga 2018-19"]
[Site "Slovakia"]
[Date "2018.11.10"]
[Round "1"]
[White "Kostelny, Jozef"]
[Black "Fiacan, Robert"]
[Result "0-1"]
[ECO "A80"]
[WhiteElo "2211"]
[BlackElo "2213"]
[Annotator "NA"]
[PlyCount "100"]
[EventDate "2018.11.10"]
[EventType "team-tourn"]
[EventCountry "SVK"]
[SourceTitle "playchess.com"]
[Source "ChessBase"]
[SourceQuality "1"]
[WhiteTeam "Zilina"]
[BlackTeam "Snina"]
[TimeControl "40/5400+30:1800+30"]

1. d4 {[%emt 0:00:00]} f5 {[%emt 0:00:00]} 2. Nf3 {[%emt 0:00:00]} Nf6 {[%emt 0:00:07]} 3. g3 {[%emt 0:00:00]} g6 {[%emt 0:00:22]} 4. Bg2 {[%emt 0:00:00]} Bg7 {[%emt 0:00:08]} 5. O-O {[%emt 0:00:06]} O-O {[%emt 0:00:07]} 6. b3 {[%emt 0:00:13]} d6 {[%emt 0:00:58]} 7. Bb2 {[%emt 0:00:13]} Qe8 {[%emt 0:15:19]} 8. c4 {[%emt 0:02:54]} e5 {[%emt 0:04:32]} 9. dxe5 {[%emt 0:00:47]} Ng4 {[%emt 0:00:11] LiveBook: 25 Games} 10. Nbd2 {[%emt 0:19:01]} Nc6 {[%emt 0:05:10]} 11. a3 $146 {[%emt 0:27:53] A87: Dutch Defence: Leningrad System: 5 Nf3} (11. Ba3 $14) ({Predecessor:} 11. Qc2 dxe5 12. e4 f4 13. Ba3 fxg3 14. fxg3 Ne3 15. Qc3 Nxf1 {0-1 (15) O'Reilly,S (1998)-Wang,P (2317) Las Vegas 2010}) 11... dxe5 {[%emt 0:05:37]} 12. e4 {[%emt 0:01:23]} fxe4 {[%emt 0:07:15]} (12... f4 $15) 13. Nxe4 {[%emt 0:01:52]} Bf5 {[%emt 0:00:34]} 14. Re1 {[%emt 0:06:27]} Rd8 {[%emt 0:02:15]} 15. Qe2 {[%emt 0:07:16]} Nd4 {[%emt 0:11:28]} 16. Nxd4 {[%emt 0:00:27]} exd4 {[%emt 0:00:11]} 17. h3 {[%emt 0:09:47] [#]} (17. Rad1 $11 {remains equal.}) 17... Ne3 $1 {[%emt 0:09:18]} 18. Qd3 {[%emt 0:10:52]} Nxg2 {[%emt 0:04:22]} 19. Kxg2 {[%emt 0:00:05]} Qf7 {[%emt 0:09:08]} 20. f3 {[%emt 0:03:57]} b6 {[%emt 0:08:21]} 21. Re2 {[%emt 0:01:51]} c5 {[%emt 0:03:37]} 22. Rae1 {[%emt 0:00:12]} Bh6 {[%emt 0:05:01]} 23. Bc1 {[%emt 0:01:01]} Bxc1 {[%emt 0:01:34]} 24. Rxc1 {[%emt 0:00:04]} a5 {[%emt 0:01:25]} 25. a4 {[%emt 0:00:35]} Qg7 {[%emt 0:00:59]} 26. Rce1 {[%emt 0:00:22]} h6 {[%emt 0:00:26]} 27. g4 {[%emt 0:00:37]} Bc8 {[%emt 0:00:24]} 28. Nd2 {[%emt 0:01:05]} Bb7 {[%emt 0:01:25]} 29. Re6 {[%emt 0:01:06]} Rf6 {[%emt 0:01:11]} 30. Re7 {[%emt 0:00:42]} Rf7 $11 {[%emt 0:00:14]} 31. R7e6 {[%emt 0:02:10]} Kh7 {[%emt 0:00:44]} 32. h4 {[%emt 0:00:09]} Rdf8 {[%emt 0:00:43]} 33. h5 {[%emt 0:00:29]} Rf6 {[%emt 0:00:54]} 34. Re7 {[%emt 0:00:44]} R8f7 {[%emt 0:00:33]} 35. Rxf7 {[%emt 0:00:51]} Qxf7 {[%emt 0:00:39]} 36. Re5 {[%emt 0:00:34]} Kg7 {[%emt 0:01:46]} 37. hxg6 {[%emt 0:00:37]} Qxg6 {[%emt 0:00:49]} 38. Qe2 {[%emt 0:00:50]} Qxg4+ {[%emt 0:00:15]} 39. Kf2 {[%emt 0:00:03]} Qh4+ {[%emt 0:00:19]} 40. Kf1 {[%emt 0:00:05]} Qh1+ {[%emt 0:00:29]} 41. Kf2 {[%emt 0:30:30]} Qh2+ {[%emt 0:18:59]} 42. Kf1 {[%emt 0:00:00]} Qxe2+ {[%emt 0:00:55]} 43. Kxe2 {[%emt 0:00:00]} Kf7 {[%emt 0:00:55]} 44. Kf2 {[%emt 0:00:00]} Re6 {[%emt 0:00:57]} 45. Rf5+ {[%emt 0:00:00]} Kg7 {[%emt 0:01:21]} 46. Rf4 {[%emt 0:00:00]} d3 {[%emt 0:01:51]} 47. Ne4 {[%emt 0:00:00]} Bxe4 {[%emt 0:00:17]} 48. fxe4 {[%emt 0:00:00]} Rf6 {[%emt 0:00:08]} 49. Rxf6 {[%emt 0:00:00]} Kxf6 {[%emt 0:00:07]} 50. Ke3 {[%emt 0:00:00]} Ke5 {[%emt 0:00:13]} 0-1

[Event "SVK ECo-C Extraliga 2018-19"]
[Site "Slovakia"]
[Date "2018.11.10"]
[Round "1"]
[White "Kantorik, Marian"]
[Black "Schwarz, Dusan"]
[Result "0-1"]
[ECO "D44"]
[WhiteElo "2209"]
[BlackElo "2313"]
[Annotator "NA"]
[PlyCount "68"]
[EventDate "2018.11.10"]
[EventType "team-tourn"]
[EventCountry "SVK"]
[SourceTitle "playchess.com"]
[Source "ChessBase"]
[SourceQuality "1"]
[WhiteTeam "Dunajov"]
[BlackTeam "Modra"]
[TimeControl "40/5400+30:1800+30"]

1. d4 {[%emt 0:00:00]} d5 {[%emt 0:00:00]} 2. c4 {[%emt 0:00:00]} c6 {[%emt 0:00:00]} 3. Nf3 {[%emt 0:00:25]} Nf6 {[%emt 0:00:00]} 4. Nc3 {[%emt 0:00:16]} e6 {[%emt 0:00:10]} 5. Bg5 {[%emt 0:00:37]} dxc4 {[%emt 0:00:54]} 6. e4 {[%emt 0:00:08]} b5 {[%emt 0:00:18]} 7. e5 {[%emt 0:00:06]} h6 {[%emt 0:00:11]} 8. Bh4 {[%emt 0:00:09]} g5 {[%emt 0:00:11]} 9. exf6 {[%emt 0:00:06]} gxh4 {[%emt 0:00:28]} 10. Ne5 {[%emt 0:00:06]} Qxf6 {[%emt 0:00:51]} 11. g3 {[%emt 0:00:34]} Nd7 {[%emt 0:02:21]} 12. Qe2 {[%emt 0:00:35]} Nxe5 {[%emt 0:02:58] D44: Damengambit (Botwinnik-Variante)} 13. dxe5 {[%emt 0:00:11]} Qe7 {[%emt 0:00:32]} ({Better is} 13... Qg5 $15) 14. Bg2 {[%emt 0:03:33]} Bb7 {[%emt 0:01:02] LiveBook: 10 Games} 15. a4 {[%emt 0:09:01]} (15. O-O-O $11 {keeps the balance.}) 15... Bg7 {[%emt 0:05:21]} 16. O-O {[%emt 0:04:08]} O-O {[%emt 0:03:04]} 17. f4 $146 {[%emt 0:03:59]} ({Vorgänger:} 17. Qh5 hxg3 18. hxg3 a6 19. Ne4 Rab8 20. Rfe1 {½-½ (59) Perez Rodriguez,L (2475)-Rojas Barrero,A (2249) Silvania 2011}) 17... hxg3 {[%emt 0:16:37]} 18. hxg3 {[%emt 0:00:09]} a6 {[%emt 0:00:32]} 19. Ne4 {[%emt 0:02:34]} c5 {[%emt 0:00:58]} 20. f5 {[%emt 0:16:42] [#]} (20. Qg4 $15) 20... exf5 $1 {[%emt 0:04:11]} ({Aber nicht} 20... Bxe5 $2 21. f6 $18) 21. Rxf5 {[%emt 0:00:10]} Bxe4 {[%emt 0:25:00]} 22. Bxe4 {[%emt 0:10:06]} Rad8 {[%emt 0:02:04]} 23. Raf1 {[%emt 0:07:34]} (23. axb5 $15 axb5 24. Ra6) 23... Rd4 {[%emt 0:01:36]} ({But not} 23... Bxe5 $2 {[#]} 24. Rxe5 $1 {[%mdl 512]} Qd6 25. axb5 $3 $18 {[%mdl 512]}) 24. Qf3 {[%emt 0:12:04]} Qe6 {[%emt 0:07:20]} 25. Rh5 {[%emt 0:11:48]} (25. Rf2 $17 {was called for.}) 25... Bxe5 $17 {[%emt 0:05:28]} ({Black should try} 25... bxa4 $19 26. Qe2 Rb8) 26. Bf5 {[%emt 0:01:41]} (26. Re1 $142 Kg7 27. Bc2) 26... Qd6 {[%emt 0:02:29]} 27. Re1 {[%emt 0:06:19]} Bg7 {[%emt 0:04:12]} 28. Be4 {[%emt 0:03:33]} Rd8 {[%emt 0:03:20]} 29. Rf5 {[%emt 0:01:33]} Rd1 {[%emt 0:01:10]} 30. Rxd1 {[%emt 0:03:39]} Qxd1+ {[%emt 0:00:11]} 31. Qxd1 {[%emt 0:00:04]} Rxd1+ {[%emt 0:00:06]} 32. Kf2 {[%emt 0:00:59]} Bxb2 {[%emt 0:02:19]} 33. Ke2 {[%emt 0:02:33]} Rd4 {[%emt 0:00:30]} 34. Bd5 {[%emt 0:00:33]} bxa4 {[%emt 0:02:29]} 0-1

[Event "SVK ECo-C Extraliga 2018-19"]
[Site "Slovakia"]
[Date "2018.11.10"]
[Round "1"]
[White "Jozefek, Michal"]
[Black "Walter, Szymon"]
[Result "0-1"]
[ECO "E33"]
[WhiteElo "2207"]
[BlackElo "2322"]
[Annotator "NA"]
[PlyCount "108"]
[EventDate "2018.11.10"]
[EventType "team-tourn"]
[EventCountry "SVK"]
[SourceTitle "playchess.com"]
[Source "ChessBase"]
[SourceQuality "1"]
[WhiteTeam "Osuske"]
[BlackTeam "Dubnica"]
[TimeControl "40/5400+30:1800+30"]

1. d4 {[%emt 0:00:00]} Nf6 {[%emt 0:00:00]} 2. c4 {[%emt 0:00:00]} e6 {[%emt 0:00:00]} 3. Nc3 {[%emt 0:00:05]} Bb4 {[%emt 0:00:41]} 4. Qc2 {[%emt 0:00:10]} Nc6 {[%emt 0:00:46]} 5. Nf3 {[%emt 0:02:32] LiveBook: 1173 Games} d6 {[%emt 0:00:52]} 6. Bg5 {[%emt 0:03:05]} h6 {[%emt 0:00:49]} 7. Bxf6 {[%emt 0:00:47]} Qxf6 {[%emt 0:00:10]} 8. a3 {[%emt 0:03:27] E33: Nimzo-Indian: Classical: 4...Nc6} Bxc3+ {[%emt 0:01:37]} 9. Qxc3 {[%emt 0:00:02]} e5 {[%emt 0:06:23]} 10. dxe5 {[%emt 0:02:01]} dxe5 {[%emt 0:13:09]} 11. e3 {[%emt 0:03:35]} Bf5 $146 {[%emt 0:02:12]} ({Predecessor:} 11... O-O 12. Bd3 Bh3 13. O-O Qe6 14. Nd2 Bf5 15. Ne4 Qg6 {0-1 (53) Hamilton,R (2251)-Rozentalis,E (2619) Montreal 2013}) 12. Rd1 {[%emt 0:08:03]} O-O {[%emt 0:24:50]} 13. Be2 {[%emt 0:07:59]} Rad8 {[%emt 0:00:35]} 14. O-O {[%emt 0:00:52]} g5 {[%emt 0:01:20]} 15. b4 {[%emt 0:13:35]} g4 {[%emt 0:00:39]} 16. Nd2 {[%emt 0:00:35]} Qg6 {[%emt 0:01:30]} 17. Nb3 {[%emt 0:04:40]} Bc2 {[%emt 0:07:06]} 18. Rd5 {[%emt 0:02:19]} Be4 {[%emt 0:26:27]} 19. Rxd8 {[%emt 0:03:16]} Rxd8 {[%emt 0:00:04]} 20. b5 {[%emt 0:01:10]} Bf3 {[%emt 0:02:01]} 21. Nc1 {[%emt 0:04:25]} Bxe2 {[%emt 0:01:54]} 22. Nxe2 {[%emt 0:00:06]} Rd3 {[%emt 0:00:06]} 23. Qb2 {[%emt 0:00:09]} Na5 {[%emt 0:04:17]} 24. Qxe5 {[%emt 0:00:15]} Qd6 {[%emt 0:00:25]} 25. Qe8+ {[%emt 0:01:00]} Kg7 {[%emt 0:00:05]} 26. Ng3 {[%emt 0:19:48]} Qc5 {[%emt 0:00:26]} 27. e4 {[%emt 0:05:54]} Nxc4 {[%emt 0:02:16]} 28. Nf5+ {[%emt 0:00:33]} Kf6 {[%emt 0:00:45]} 29. Qh8+ {[%emt 0:04:40]} Ke6 {[%emt 0:00:05]} 30. Qxh6+ {[%emt 0:00:17]} Kd7 {[%emt 0:00:54]} 31. a4 {[%emt 0:00:40]} Nd2 {[%emt 0:01:49]} 32. Re1 {[%emt 0:07:54]} Qc3 {[%emt 0:00:32]} 33. Kh1 {[%emt 0:01:43]} ({Better is} 33. Nh4 $1 $15 Nxe4 34. Rf1) 33... Nxe4 {[%emt 0:00:07]} 34. Rc1 {[%emt 0:00:21]} Nxf2+ 35. Kg1 Qxc1+ {[%emt 0:01:56]} 36. Qxc1 {[%emt 0:00:02]} Rd1+ {[%emt 0:00:05]} 37. Qxd1+ {[%emt 0:00:08]} Nxd1 {[%emt 0:00:04]} 38. Nh6 {[%emt 0:00:04]} Ke6 {[%emt 0:00:37]} 39. Nxg4 {[%emt 0:00:49]} f5 {[%emt 0:00:20]} 40. Nf2 {[%emt 0:00:59]} Nc3 {[%emt 0:00:08]} 41. Nd3 {[%emt 0:30:50]} Nxa4 {[%emt 0:30:16]} 42. Kf2 {[%emt 0:00:00]} Kf6 {[%emt 0:00:00]} 43. Ke3 {[%emt 0:00:00]} Nc3 {[%emt 0:00:00]} 44. b6 {[%emt 0:00:00]} cxb6 {[%emt 0:00:00]} 45. Kd4 {[%emt 0:00:00]} Nb5+ {[%emt 0:00:00]} 46. Kd5 {[%emt 0:00:00]} Nc3+ $11 {[%emt 0:00:00]} ({Black should play} 46... Nc7+ $19 47. Kd4 Ne6+ 48. Kc3 a6) 47. Kd4 {[%emt 0:00:00]} Ne4 {[%emt 0:00:00]} 48. h4 {[%emt 0:00:00]} Nc5 {[%emt 0:00:00]} 49. Nb2 {[%emt 0:00:00]} Ne6+ {[%emt 0:00:00]} 50. Ke3 {[%emt 0:00:00]} b5 {[%emt 0:00:00]} 51. g3 {[%emt 0:00:00]} a5 {[%emt 0:00:00]} 52. Kd3 {[%emt 0:00:00]} Ke5 {[%emt 0:00:00]} 53. Ke3 {[%emt 0:00:00]} f4+ {[%emt 0:00:00]} 54. gxf4+ {[%emt 0:00:00]} Nxf4 {[%emt 0:00:00] Kd4+} 0-1